Workbook

Sheet BaseDonnée
A1: Référence | B1: Désignation | C1: N°BC | D1: Traitement | E1: Date | F1: Qté | G1: Prix U | H1: Montant | I1: TRAIT 1 | J1: TRAIT 2 | K1: TRAIT 3 | L1: TRAIT 4
A2: 8855 | B2: TUBE PISTON SOUDE | C2: 10869 | D2: CHR | E2: 2009 | F2: 4 | G2: =H2/F2 -> 31.5 | H2: 126 | I2: CHR
A3: 8855 | B3: TUBE PISTON SOUDE | C3: 14554 | D3: CHR | E3: 2011 | F3: 5 | G3: =H3/F3 -> 28.2 | H3: 141 | I3: CHR
A4: 8855 | B4: TUBE PISTON SOUDE | C4: 10637 | D4: CND | E4: 2009 | F4: 6 | G4: 25.46666667 | H4: 152.8 | I4: CND
A5: 8855 | B5: TUBE PISTON SOUDE | C5: 14355 | D5: CND | E5: 2011 | F5: 5 | G5: 27.56 | H5: 137.8 | I5: CND
A6: 8855 | B6: TUBE PISTON SOUDE | C6: 10951 | D6: RADIO | E6: 2009 | F6: 4 | G6: 24.75 | H6: 99 | I6: RADIO
A7: 8855 | B7: TUBE PISTON SOUDE | C7: 14507 | D7: RADIO | E7: 2011 | F7: 5 | G7: 19.802 | H7: 99.01 | I7: RADIO
A8: 8855 | B8: TUBE PISTON SOUDE | C8: 10312 | D8: SOUDURE | E8: 2009 | F8: 6 | G8: 30.37666667 | H8: 182.26 | I8: SOUD
A9: 8855 | B9: TUBE PISTON SOUDE | C9: 13976 | D9: SOUDURE | E9: 2011 | F9: 5 | G9: 33.648 | H9: 168.24 | I9: SOUD
A10: 8855 | B10: TUBE PISTON SOUDE | C10: 10489 | D10: TTH | E10: 2009 | F10: 6 | G10: 12.30166667 | H10: 73.81 | I10: TTH
A11: 8855 | B11: TUBE PISTON SOUDE | C11: 14162 | D11: TTH | E11: 2011 | F11: 5 | G11: 7.03 | H11: 35.15 | I11: TTH
A12: 8856 | B12: TIGE | C12: 9987 | D12: USI | E12: 2009 | F12: 7 | G12: 2 | H12: 14 | I12: USI
A13: 8856 | B13: TIGE | C13: 13367 | D13: USI | E13: 2011 | F13: 5 | G13: 15.4 | H13: 77 | I13: USI
A14: 8857 | B14: APPUI-JOINT | C14: 13367 | D14: USI | E14: 2011 | F14: 5 | G14: 30.6 | H14: 153 | I14: USI
A15: 8863 | B15: RONDELLE | C15: 10350 | D15: OAC | E15: 2009 | F15: 5 | G15: 15.358 | H15: 76.79 | I15: OAC
A16: 10494 | B16: AXE | C16: 9465 | D16: CNDDETPHOMSE | E16: 2009 | F16: 7 | G16: 5.11 | H16: 35.77 | I16: CND | J16: DET | K16: PHO
A17: 10494 | B17: AXE | C17: 9466 | D17: PEIMSE | E17: 2009 | F17: 7 | G17: 18.24285714 | H17: 127.7 | I17: PEI
A18: 10831 | B18: RONDELLE | C18: 9379 | D18: OAC | E18: 2009 | F18: 42 | G18: 2.141666667 | H18: 89.95 | I18: OAC
A19: 10831 | B19: RONDELLE | C19: 13252 | D19: OAC | E19: 2010 | F19: 25 | G19: 2.044 | H19: 51.1 | I19: OAC
A20: 10831 | B20: RONDELLE | C20: 13937 | D20: OAC | E20: 2011 | F20: 40 | G20: 4.198 | H20: 167.92 | I20: OAC
A21: 10831 | B21: RONDELLE | C21: 17979 | D21: OAC | E21: 2013 | F21: 39 | G21: 5.227948718 | H21: 203.89 | I21: OAC
A22: 12658 | B22: BOUCHON | C22: 17965 | D22: OAC | E22: 2013 | F22: 16 | G22: 8.46 | H22: 135.36 | I22: OAC
A23: 13363 | B23: ECROU | C23: 10725 | D23: CAD | E23: 2009 | F23: 7 | G23: 62.64 | H23: 438.48 | I23: CAD
A24: 13607 | B24: BAGUE D'APPUI | C24: 15525 | D24: DETCADMSE | E24: 2012 | F24: 24 | G24: 5.970833333 | H24: 143.3 | I24: DET | J24: CAD
A25: 13607 | B25: BAGUE D'APPUI | C25: 15027 | D25: TTHMSE | E25: 2011 | F25: 1 | G25: 146.65 | H25: 146.65 | I25: TTH
A26: 14347 | B26: ENTRAINEUR | C26: 15187 | D26: TTHMSE | E26: 2011 | F26: 30 | G26: 1.109 | H26: 33.27 | I26: TTH
A27: 14347 | B27: ENTRAINEUR | C27: 15188 | D27: TTHMSE | E27: 2011 | F27: 30 | G27: 2.283666667 | H27: 68.51 | I27: TTH
A28: 14347 | B28: ENTRAINEUR | C28: 14283 | D28: TTHMSE | E28: 2011 | F28: 85 | G28: 6.176470588 | H28: 525 | I28: TTH
A29: 14523 | B29: BAGUE | C29: 15219 | D29: TTHMSE | E29: 2011 | F29: 1 | G29: 37.43 | H29: 37.43 | I29: TTH
A30: 14523 | B30: BAGUE | C30: 16762 | D30: TTHMSE | E30: 2012 | F30: 2 | G30: 77.55 | H30: 155.1 | I30: TTH
A31: 14523 | B31: BAGUE | C31: 13230 | D31: TTHMSE | E31: 2011 | F31: 1 | G31: 472.5 | H31: 472.5 | I31: TTH
A32: 14524 | B32: BAGUE | C32: 20001 | D32: DETPHOMSE | E32: 2014 | F32: 10 | G32: 73.405 | H32: 734.05 | I32: DET | J32: PHO
A33: 14524 | B33: BAGUE | C33: 17213 | D33: DETPHOMSE | E33: 2012 | F33: 52 | G33: 6.870961538 | H33: 357.29 | I33: DET | J33: PHO
A34: 14524 | B34: BAGUE | C34: 16594 | D34: TTHMSE | E34: 2012 | F34: 3 | G34: 6.716666667 | H34: 20.15 | I34: TTH
A35: 14524 | B35: BAGUE | C35: 19058 | D35: TTHMSE | E35: 2013 | F35: 1 | G35: 13.11 | H35: 13.11 | I35: TTH
A36: 14524 | B36: BAGUE | C36: 13179 | D36: TTHMSE | E36: 2010 | F36: 2 | G36: 1245.5 | H36: 2491 | I36: TTH
A37: 14544 | B37: DEMI-BAGUE | C37: 10860 | D37: DETCADMSE | E37: 2009 | F37: 36 | G37: 2.980833333 | H37: 107.31 | I37: DET | J37: CAD
A38: 14544 | B38: DEMI-BAGUE | C38: 10609 | D38: TTHMSE | E38: 2009 | F38: 2 | G38: 45.615 | H38: 91.23 | I38: TTH
A39: 14563 | B39: AXE | C39: 10786 | D39: CNDMSE | E39: 2009 | F39: 9 | G39: 3.974444444 | H39: 35.77 | I39: CND
A40: 14563 | B40: AXE | C40: 10787 | D40: RECTIFMSE | E40: 2009 | F40: 9 | G40: 2.498888889 | H40: 22.49 | I40: RECTIF
A41: 14694 | B41: RONDELLE | C41: 13560 | D41: DETCADMSE | E41: 2011 | F41: 17 | G41: 8.007058824 | H41: 136.12 | I41: DET | J41: CAD
A42: 14694 | B42: RONDELLE | C42: 15532 | D42: DETCADMSE | E42: 2012 | F42: 54 | G42: 17.13555556 | H42: 925.32 | I42: DET | J42: CAD
A43: 14694 | B43: RONDELLE | C43: 15189 | D43: TTHMSE | E43: 2011 | F43: 6 | G43: 7.265 | H43: 43.59 | I43: TTH
A44: 14694 | B44: RONDELLE | C44: 13047 | D44: TTHMSE | E44: 2010 | F44: 2 | G44: 639 | H44: 1278 | I44: TTH
A45: 14696 | B45: RONDELLE | C45: 10377 | D45: PELMSE | E45: 2009 | F45: 5 | G45: 616.224 | H45: 3081.12 | I45: PEL
A46: 14858 | B46: BAGUE | C46: 17278 | D46: DETPHOMSE | E46: 2012 | F46: 31 | G46: 0.8290322581 | H46: 25.7 | I46: DET | J46: PHO
A47: 14858 | B47: BAGUE | C47: 16810 | D47: TTHMSE | E47: 2012 | F47: 3 | G47: 22.30333333 | H47: 66.91 | I47: TTH
A48: 15061 | B48: AXE | C48: 9077 | D48: CADMSE | E48: 2009 | F48: 44 | G48: 9.227272727 | H48: 406 | I48: CAD
A49: 15061 | B49: AXE | C49: 8848 | D49: CHRMSE | E49: 2009 | F49: 44 | G49: 5.509545455 | H49: 242.42 | I49: CHR
A50: 15087 | B50: RONDELLE | C50: 14705 | D50: CADMSE | E50: 2011 | F50: 97 | G50: 82.59958763 | H50: 8012.16 | I50: CAD
A51: 15087 | B51: RONDELLE | C51: 15482 | D51: CADMSE | E51: 2012 | F51: 184 | G51: 0.5434782609 | H51: 100 | I51: CAD
A52: 15087 | B52: RONDELLE | C52: 15702 | D52: CADMSE | E52: 2012 | F52: 32 | G52: 11.9 | H52: 380.8 | I52: CAD
A53: 15087 | B53: RONDELLE | C53: 16179 | D53: CADMSE | E53: 2012 | F53: 115 | G53: 0.9 | H53: 103.5 | I53: CAD
A54: 15588 | B54: TOLE FREIN | C54: 20007 | D54: CAD | E54: 2014 | F54: 67 | G54: 0.8955223881 | H54: 60 | I54: CAD
A55: 15588 | B55: TOLE FREIN | C55: 19619 | D55: CAD | E55: 2013 | F55: 30 | G55: 4.360666667 | H55: 130.82 | I55: CAD
A56: 15588 | B56: TOLE FREIN | C56: 11538 | D56: CAD | E56: 2010 | F56: 63 | G56: 3.015873016 | H56: 190 | I56: CAD
A57: 15588 | B57: TOLE FREIN | C57: 12919 | D57: CAD | E57: 2010 | F57: 60 | G57: 0 | H57: 0 | I57: CAD
A58: 15588 | B58: TOLE FREIN | C58: 14408 | D58: CAD | E58: 2011 | F58: 80 | G58: 0.7125 | H58: 57 | I58: CAD
A59: 15588 | B59: TOLE FREIN | C59: 20245 | D59: CADMSE | E59: 2014 | F59: 38 | G59: 4.263157895 | H59: 162 | I59: CAD
A60: 16418 | B60: RONDELLE | C60: 15848 | D60: CADMSE | E60: 2012 | F60: 18 | G60: 6.666666667 | H60: 120 | I60: CAD
A61: 16418 | B61: RONDELLE | C61: 16215 | D61: CADMSE | E61: 2012 | F61: 128 | G61: 0.9375 | H61: 120 | I61: CAD
A62: 16828 | B62: ECROU | C62: 20259 | D62: CAD | E62: 2014 | F62: 19 | G62: 7.768421053 | H62: 147.6 | I62: CAD
A63: 16828 | B63: ECROU | C63: 9422 | D63: CAD | E63: 2009 | F63: 13 | G63: 5.538461538 | H63: 72 | I63: CAD
A64: 16828 | B64: ECROU | C64: 11765 | D64: CAD | E64: 2010 | F64: 15 | G64: 20 | H64: 300 | I64: CAD
A65: 16828 | B65: ECROU | C65: 19586 | D65: TTH | E65: 2013 | F65: 2 | G65: 8.425 | H65: 16.85 | I65: TTH
A66: 16828 | B66: ECROU | C66: 8883 | D66: TTH | E66: 2009 | F66: 1 | G66: 93.15 | H66: 93.15 | I66: TTH
A67: 16828 | B67: ECROU | C67: 11352 | D67: TTH | E67: 2010 | F67: 1 | G67: =H67/F67 -> 19.95 | H67: 19.95 | I67: TTH
A68: 16844 | B68: ENTRAINEUR | C68: 10652 | D68: CUI | E68: 2009 | F68: 95 | G68: 1.032736842 | H68: 98.11 | I68: CUI
A69: 16844 | B69: ENTRAINEUR | C69: 14556 | D69: CUI | E69: 2011 | F69: 50 | G69: 5.0336 | H69: 251.68 | I69: CUI
A70: 16844 | B70: ENTRAINEUR | C70: 10063 | D70: TTH | E70: 2009 | F70: 18 | G70: 1.086111111 | H70: 19.55 | I70: TTH
A71: 16844 | B71: ENTRAINEUR | C71: 14205 | D71: TTH | E71: 2011 | F71: 10 | G71: 2.411 | H71: 24.11 | I71: TTH
A72: 17107 | B72: BAGUE | C72: 11703 | D72: DETPHOMSE | E72: 2010 | F72: 6 | G72: 5.961666667 | H72: 35.77 | I72: DET | J72: PHO
A73: 17108 | B73: BAGUE | C73: 11704 | D73: DETPHOMSE | E73: 2010 | F73: 6 | G73: 79.48833333 | H73: 476.93 | I73: DET | J73: PHO
A74: 17147 | B74: BAGUE | C74: 12010 | D74: DETPHOMSE | E74: 2010 | F74: 11 | G74: 10.38545455 | H74: 114.24 | I74: DET | J74: PHO
A75: 17147 | B75: BAGUE | C75: 11695 | D75: TTHMSE | E75: 2010 | F75: 12 | G75: 8.535833333 | H75: 102.43 | I75: TTH
A76: 17148 | B76: BOUCHON | C76: 11973 | D76: PHOMSE | E76: 2010 | F76: 6 | G76: 16.5 | H76: 99 | I76: PHO
A77: 17149 | B77: BAGUE | C77: 11522 | D77: DETPHOMSE | E77: 2010 | F77: 10 | G77: 87.228 | H77: 872.28 | I77: DET | J77: PHO
A78: 17149 | B78: BAGUE | C78: 11353 | D78: TTHMSE | E78: 2010 | F78: 1 | G78: 88.35 | H78: 88.35 | I78: TTH
A79: 17916 | B79: ECROU | C79: 11355 | D79: TTHMSE | E79: 2010 | F79: 1 | G79: 21.95 | H79: 21.95 | I79: TTH
A80: 17916 | B80: ECROU | C80: 19862 | D80: TTHMSE | E80: 2014 | F80: 1 | G80: 2244 | H80: 2244 | I80: TTH
A81: 18223 | B81: RACCORD DE REDUCTION | C81: 10443 | D81: PEL | E81: 2009 | F81: 1 | G81: 3227.84 | H81: 3227.84 | I81: PEL
A82: 18223 | B82: RACCORD DE REDUCTION | C82: 16126 | D82: PEL | E82: 2012 | F82: 4 | G82: 531.25 | H82: 2125 | I82: PEL
A83: 18223 | B83: RACCORD DE REDUCTION | C83: 18295 | D83: PEL | E83: 2013 | F83: 5 | G83: 33.4 | H83: 167 | I83: PEL
A84: 18223 | B84: RACCORD DE REDUCTION | C84: 18537 | D84: PEL | E84: 2013 | F84: 8 | G84: 404.79 | H84: 3238.32 | I84: PEL
A85: 18227 | B85: EMBOUT | C85: 15118 | D85: CNDOAC | E85: 2011 | F85: 2 | G85: 17.885 | H85: 35.77 | I85: CND | J85: OAC
A86: 18227 | B86: EMBOUT | C86: 18214 | D86: CNDOAC | E86: 2013 | F86: 2 | G86: 171.35 | H86: 342.7 | I86: CND | J86: OAC
A87: 18228 | B87: EMBOUT | C87: 17885 | D87: CNDOAS | E87: 2013 | F87: 5 | G87: 22.536 | H87: 112.68 | I87: CND | J87: OAS
A88: 18228 | B88: EMBOUT | C88: 18866 | D88: CNDOAS | E88: 2013 | F88: 8 | G88: 4.47125 | H88: 35.77 | I88: CND | J88: OAS
A89: 18297 | B89: BOUCHON DE STOCKAGE | C89: 11519 | D89: OAS | E89: 2010 | F89: 12 | G89: 27.33833333 | H89: 328.06 | I89: OAS
A90: 18446 | B90: CORPS | C90: 14723 | D90: CNDOAC | E90: 2011 | F90: 3 | G90: 40.63333333 | H90: 121.9 | I90: CND | J90: OAC
A91: 18448 | B91: VIS | C91: 14937 | D91: OAC | E91: 2011 | F91: 13 | G91: 5.126153846 | H91: 66.64 | I91: OAC
A92: 18574 | B92: BOUCHON DE STOCKAGE | C92: 19859 | D92: OAS | E92: 2013 | F92: 63 | G92: 0.8207936508 | H92: 51.71 | I92: OAS
A93: 18574 | B93: BOUCHON DE STOCKAGE | C93: 19612 | D93: USI | E93: 2013 | F93: 63 | G93: 0.5396825397 | H93: 34 | I93: USI
A94: 18678 | B94: SIEGE DE CLAPET | C94: 17011 | D94: CNDCAD | E94: 2012 | F94: 5 | G94: 190.5 | H94: 952.5 | I94: CND | J94: CAD
A95: 18678 | B95: SIEGE DE CLAPET | C95: 16452 | D95: TTH | E95: 2012 | F95: 1 | G95: 184.07 | H95: 184.07 | I95: TTH
A96: 18732 | B96: GLACE REFLECTEUR | C96: 17039 | D96: CND | E96: 2012 | F96: 22 | G96: 130.9545455 | H96: 2881 | I96: CND
A97: 18736 | B97: ECROU | C97: 16688 | D97: CAD | E97: 2012 | F97: 13 | G97: 12.39384615 | H97: 161.12 | I97: CAD
A98: 18736 | B98: ECROU | C98: 16688 | D98: PEI | E98: 2012 | F98: 13 | G98: 29.44615385 | H98: 382.8 | I98: PEI
A99: 18736 | B99: ECROU | C99: 16181 | D99: TTH | E99: 2012 | F99: 1 | G99: 125.01 | H99: 125.01 | I99: TTH
A100: 18897 | B100: BOUCHON | C100: 18704 | D100: OAS | E100: 2013 | F100: 22 | G100: 6.956818182 | H100: 153.05 | I100: OAS
A101: 18937 | B101: EMBOUT USINE | C101: 16094 | D101: CNDPHO | E101: 2012 | F101: 8 | G101: 41.88875 | H101: 335.11 | I101: CND | J101: PHO
A102: 18937 | B102: EMBOUT USINE | C102: 17863 | D102: CNDPHO | E102: 2013 | F102: 3 | G102: 279 | H102: 837 | I102: CND | J102: PHO
A103: 18937 | B103: EMBOUT USINE | C103: 19212 | D103: CNDPHO | E103: 2013 | F103: 4 | G103: 171.75 | H103: 687 | I103: CND | J103: PHO
A104: 18937 | B104: EMBOUT USINE | C104: 18060 | D104: PEI | E104: 2013 | F104: 3 | G104: 18.88333333 | H104: 56.65 | I104: PEI
A105: 18937 | B105: EMBOUT USINE | C105: 19485 | D105: PEI | E105: 2013 | F105: 4 | G105: 30.1375 | H105: 120.55 | I105: PEI
A106: 18937 | B106: EMBOUT USINE | C106: 16094 | D106: PEI | E106: 2012 | F106: 8 | G106: 15.9625 | H106: 127.7 | I106: PEI
A107: 18937 | B107: EMBOUT USINE | C107: 15517 | D107: TTH | E107: 2012 | F107: 10 | G107: 7.05 | H107: 70.5 | I107: TTH
A108: 18937 | B108: EMBOUT USINE | C108: 16900 | D108: TTH | E108: 2012 | F108: 3 | G108: 61.35666667 | H108: 184.07 | I108: TTH
A109: 18946 | B109: ECROU | C109: 8944 | D109: CNDPHO | E109: 2009 | F109: 31 | G109: 2.967096774 | H109: 91.98 | I109: CND | J109: PHO
A110: 18946 | B110: ECROU | C110: 12337 | D110: CNDPHO | E110: 2010 | F110: 35 | G110: 1.022 | H110: 35.77 | I110: CND | J110: PHO
A111: 18946 | B111: ECROU | C111: 13444 | D111: CNDPHO | E111: 2011 | F111: 59 | G111: 5.679830508 | H111: 335.11 | I111: CND | J111: PHO
A112: 18946 | B112: ECROU | C112: 15643 | D112: CNDPHO | E112: 2012 | F112: 56 | G112: 5.984107143 | H112: 335.11 | I112: CND | J112: PHO
A113: 18946 | B113: ECROU | C113: 16411 | D113: CNDPHO | E113: 2012 | F113: 59 | G113: 5.679830508 | H113: 335.11 | I113: CND | J113: PHO
A114: 18946 | B114: ECROU | C114: 19468 | D114: CNDPHO | E114: 2013 | F114: 56 | G114: 25.71428571 | H114: 1440 | I114: CND | J114: PHO
A115: 18946 | B115: ECROU | C115: 20415 | D115: CNDPHO | E115: 2014 | F115: 46 | G115: 1.43673913 | H115: 66.09 | I115: CND | J115: PHO
A116: 18946 | B116: DÉFAUT N°1 2 | C116: 20058 | D116: DECAPPEI | E116: 2014 | F116: 46 | G116: 0 | H116: 0 | I116: DECAP | J116: PEI
A117: 18946 | B117: DÉFAUT N°1 2 | C117: 20246 | D117: DECAPPHO | E117: 2014 | F117: 46 | G117: 6.098695652 | H117: 280.54 | I117: DECAP | J117: PHO
A118: 18946 | B118: ECROU | C118: 19469 | D118: PEI | E118: 2014 | F118: 56 | G118: 0.64125 | H118: 35.91 | I118: PEI
A119: 18946 | B119: ECROU | C119: 20738 | D119: PEI | E119: 2014 | F119: 46 | G119: 57.67826087 | H119: 2653.2 | I119: PEI
A120: 18946 | B120: ECROU | C120: 12337 | D120: PEI | E120: 2010 | F120: 35 | G120: 3.09 | H120: 108.15 | I120: PEI
A121: 18946 | B121: ECROU | C121: 13444 | D121: PEI | E121: 2011 | F121: 59 | G121: 1.825254237 | H121: 107.69 | I121: PEI
A122: 18946 | B122: ECROU | C122: 15643 | D122: PEI | E122: 2012 | F122: 56 | G122: 14.67232143 | H122: 821.65 | I122: PEI
A123: 18946 | B123: ECROU | C123: 16411 | D123: PEI | E123: 2012 | F123: 59 | G123: 5.369491525 | H123: 316.8 | I123: PEI
A124: 18946 | B124: ECROU | C124: 8945 | D124: PEI | E124: 2009 | F124: 31 | G124: 4.119354839 | H124: 127.7 | I124: PEI
A125: 18946 | B125: ECROU | C125: 14614 | D125: TTH | E125: 2011 | F125: 14 | G125: 8.225 | H125: 115.15 | I125: TTH
A126: 18946 | B126: ECROU | C126: 15978 | D126: TTH | E126: 2012 | F126: 15 | G126: 8.334 | H126: 125.01 | I126: TTH
A127: 18946 | B127: ECROU | C127: 18988 | D127: TTH | E127: 2013 | F127: 14 | G127: 1.219285714 | H127: 17.07 | I127: TTH
A128: 18946 | B128: ECROU | C128: 20112 | D128: TTH | E128: 2014 | F128: 14 | G128: 3.610714286 | H128: 50.55 | I128: TTH
A129: 18946 | B129: ECROU | C129: 12109 | D129: TTH | E129: 2010 | F129: 9 | G129: 4.241111111 | H129: 38.17 | I129: TTH
A130: 18946 | B130: ECROU | C130: 13280 | D130: TTH | E130: 2010 | F130: 15 | G130: 6.242 | H130: 93.63 | I130: TTH
A131: 18946 | B131: ECROU | C131: 20337 | D131: USI | E131: 2014 | F131: 56 | G131: =H131/F131 -> 0.7935714286 | H131: 44.44 | I131: USI
A132: 18946 | B132: ECROU | C132: 15149 | D132: USI | E132: 2012 | F132: 56 | G132: 0.5071428571 | H132: 28.4 | I132: USI
A133: 18946 | B133: ECROU | C133: 16124 | D133: USI | E133: 2012 | F133: 59 | G133: 0.2779661017 | H133: 16.4 | I133: USI
A134: 18946 | B134: ECROU | C134: 19181 | D134: USI | E134: 2013 | F134: 56 | G134: 15.99107143 | H134: 895.5 | I134: USI
A135: 18982 | B135: RONDELLE | C135: 11610 | D135: OADMSE | E135: 2010 | F135: 16 | G135: 7.4225 | H135: 118.76 | I135: OAD
A136: 18996 | B136: DOUILLE DE VERROUILLAGE | C136: 10824 | D136: CND | E136: 2009 | F136: 9 | G136: 16.97777778 | H136: 152.8 | I136: CND
A137: 18996 | B137: DOUILLE DE VERROUILLAGE | C137: 10604 | D137: TTH | E137: 2009 | F137: 2 | G137: 44.175 | H137: 88.35 | I137: TTH
A138: 19518 | B138: BOUCHON DE STOCKAGE | C138: 18908 | D138: OASROUGE | E138: 2013 | F138: 12 | G138: 38.52916667 | H138: 462.35 | I138: OASROUGE
A139: 19518 | B139: BOUCHON DE STOCKAGE | C139: 20113 | D139: OASROUGE | E139: 2014 | F139: 14 | G139: 12.98214286 | H139: 181.75 | I139: OASROUGE
A140: 19518 | B140: BOUCHON DE STOCKAGE | C140: 9761 | D140: OASROUGE | E140: 2009 | F140: 9 | G140: 5.677777778 | H140: 51.1 | I140: OASROUGE
A141: 19518 | B141: BOUCHON DE STOCKAGE | C141: 10465 | D141: OASROUGE | E141: 2009 | F141: 8 | G141: 12.77625 | H141: 102.21 | I141: OASROUGE
A142: 19518 | B142: BOUCHON DE STOCKAGE | C142: 12437 | D142: OASROUGE | E142: 2010 | F142: 16 | G142: 3.19375 | H142: 51.1 | I142: OASROUGE
A143: 19518 | B143: BOUCHON DE STOCKAGE | C143: 17027 | D143: OASROUGE | E143: 2012 | F143: 19 | G143: 2.711052632 | H143: 51.51 | I143: OASROUGE
A144: 19559 | B144: DEFLECTEUR | C144: 10344 | D144: CNDOAS | E144: 2009 | F144: 53 | G144: 3.010943396 | H144: 159.58 | I144: CND | J144: OAS
A145: 19559 | B145: DEFLECTEUR | C145: 13130 | D145: CNDOAS | E145: 2010 | F145: 26 | G145: 15.91769231 | H145: 413.86 | I145: CND | J145: OAS
A146: 19559 | B146: DEFLECTEUR | C146: 14204 | D146: CNDOAS | E146: 2011 | F146: 61 | G146: 1.172786885 | H146: 71.54 | I146: CND | J146: OAS
A147: 19559 | B147: DEFLECTEUR | C147: 16128 | D147: CNDOAS | E147: 2012 | F147: 53 | G147: 0.7124528302 | H147: 37.76 | I147: CND | J147: OAS
A148: 19559 | B148: DEFLECTEUR | C148: 17948 | D148: CNDOAS | E148: 2013 | F148: 52 | G148: 2.495769231 | H148: 129.78 | I148: CND | J148: OAS
A149: 19559 | B149: DEFLECTEUR | C149: 20367 | D149: OAS | E149: 2014 | F149: 49 | G149: 24.70408163 | H149: 1210.5 | I149: OAS
A150: 19559 | B150: DEFLECTEUR | C150: 19643 | D150: OAS | E150: 2013 | F150: 52 | G150: 0.9826923077 | H150: 51.1 | I150: OAS
A151: 19583 | B151: PENE | C151: 14528 | D151: CNDCHRPHO | E151: 2011 | F151: 10 | G151: 14.275 | H151: 142.75 | I151: CND | J151: CHR | K151: PHO
A152: 19583 | B152: PENE | C152: 14237 | D152: TTH | E152: 2011 | F152: 5 | G152: 33.988 | H152: 169.94 | I152: TTH
A153: 19584 | B153: CORPS | C153: 9363 | D153: CNDOAS | E153: 2009 | F153: 6 | G153: 5.961666667 | H153: 35.77 | I153: CND | J153: OAS
A154: 19584 | B154: CORPS | C154: 9862 | D154: CNDOAS | E154: 2009 | F154: 7 | G154: 5.11 | H154: 35.77 | I154: CND | J154: OAS
A155: 19584 | B155: CORPS | C155: 10668 | D155: CNDOAS | E155: 2009 | F155: 4 | G155: 161.2625 | H155: 645.05 | I155: CND | J155: OAS
A156: 19584 | B156: CORPS | C156: 11017 | D156: CNDOAS | E156: 2009 | F156: 5 | G156: 38.13 | H156: 190.65 | I156: CND | J156: OAS
A157: 19584 | B157: CORPS | C157: 13478 | D157: CNDOAS | E157: 2011 | F157: 9 | G157: 17.49333333 | H157: 157.44 | I157: CND | J157: OAS
A158: 19586 | B158: CORPS EQUIPE | C158: 9678 | D158: PEI | E158: 2009 | F158: 5 | G158: 524.796 | H158: 2623.98 | I158: PEI
A159: 19586 | B159: CORPS EQUIPE | C159: 10154 | D159: PEI | E159: 2009 | F159: 5 | G159: 17.51 | H159: 87.55 | I159: PEI
A160: 19586 | B160: CORPS EQUIPE | C160: 10254 | D160: PEI | E160: 2009 | F160: 5 | G160: 2.92 | H160: 14.6 | I160: PEI
A161: 19586 | B161: CORPS EQUIPE | C161: 10758 | D161: PEIOC | E161: 2009 | F161: 4 | G161: 271.5675 | H161: 1086.27 | I161: PEI | J161: OC
A162: 19586 | B162: CORPS EQUIPE | C162: 15173 | D162: PEIOC | E162: 2012 | F162: 9 | G162: 356.32 | H162: 3206.88 | I162: PEI | J162: OC
A163: 19634 | B163: FOND | C163: 19855 | D163: OAS | E163: 2014 | F163: 17 | G163: 4.914705882 | H163: 83.55 | I163: OAS
A164: 19634 | B164: FOND | C164: 9513 | D164: OAS | E164: 2009 | F164: 25 | G164: 6.7168 | H164: 167.92 | I164: OAS
A165: 19634 | B165: FOND | C165: 11732 | D165: OAS | E165: 2010 | F165: 15 | G165: 3.406666667 | H165: 51.1 | I165: OAS
A166: 19634 | B166: FOND | C166: 19855 | D166: PEI | E166: 2014 | F166: 17 | G166: 185.7458824 | H166: 3157.68 | I166: PEI
A167: 19634 | B167: FOND | C167: 9514 | D167: PEI | E167: 2009 | F167: 25 | G167: 2.6368 | H167: 65.92 | I167: PEI
A168: 19634 | B168: FOND | C168: 11733 | D168: PEI | E168: 2010 | F168: 15 | G168: 20.75533333 | H168: 311.33 | I168: PEI
A169: 19636 | B169: ECROU | C169: 19901 | D169: OAS | E169: 2014 | F169: 30 | G169: 1.703333333 | H169: 51.1 | I169: OAS
A170: 19636 | B170: ECROU | C170: 8982 | D170: OAS | E170: 2009 | F170: 29 | G170: 3.436206897 | H170: 99.65 | I170: OAS
A171: 19636 | B171: ECROU | C171: 10726 | D171: OAS | E171: 2009 | F171: 25 | G171: 16.0028 | H171: 400.07 | I171: OAS
A172: 19636 | B172: ECROU | C172: 10727 | D172: PEI | E172: 2009 | F172: 25 | G172: 8.17 | H172: 204.25 | I172: PEI
A173: 19636 | B173: ECROU | C173: 8983 | D173: PEI | E173: 2009 | F173: 29 | G173: 4.403448276 | H173: 127.7 | I173: PEI
A174: 19641 | B174: BAGUE | C174: 19802 | D174: CAD | E174: 2014 | F174: 10 | G174: 7.2 | H174: 72 | I174: CAD
A175: 19641 | B175: BAGUE | C175: 20635 | D175: CAD | E175: 2014 | F175: 14 | G175: 10.54285714 | H175: 147.6 | I175: CAD
A176: 19641 | B176: BAGUE | C176: 8995 | D176: CAD | E176: 2009 | F176: 13 | G176: 0 | H176: 0 | I176: CAD
A177: 19641 | B177: BAGUE | C177: 11740 | D177: CAD | E177: 2010 | F177: 8 | G177: 33 | H177: 264 | I177: CAD
A178: 19641 | B178: BAGUE | C178: 19421 | D178: TTH | E178: 2013 | F178: 1 | G178: 22.41 | H178: 22.41 | I178: TTH
A179: 19641 | B179: BAGUE | C179: 20118 | D179: TTH | E179: 2014 | F179: 1 | G179: 267.69 | H179: 267.69 | I179: TTH
A180: 19641 | B180: BAGUE | C180: 8882 | D180: TTH | E180: 2009 | F180: 1 | G180: 27.15 | H180: 27.15 | I180: TTH
A181: 19641 | B181: BAGUE | C181: 11630 | D181: TTH | E181: 2010 | F181: 1 | G181: 57.56 | H181: 57.56 | I181: TTH
A182: 19643 | B182: PISTON | C182: 9854 | D182: COMP | E182: 2009 | F182: 7 | G182: 7.27 | H182: 50.89 | I182: COMP
A183: 19644 | B183: CENTREUR | C183: 9956 | D183: OAS | E183: 2009 | F183: 17 | G183: 23.95470588 | H183: 407.23 | I183: OAS
A184: 19644 | B184: CENTREUR | C184: 19813 | D184: OAS | E184: 2013 | F184: 10 | G184: 5.11 | H184: 51.1 | I184: OAS
A185: 19649 | B185: VIS | C185: 19824 | D185: OAS | E185: 2014 | F185: 12 | G185: 13.38583333 | H185: 160.63 | I185: OAS
A186: 19649 | B186: VIS | C186: 9891 | D186: OAS | E186: 2009 | F186: 11 | G186: 126.3836364 | H186: 1390.22 | I186: OAS
A187: 19649 | B187: VIS | C187: 19824 | D187: PEI | E187: 2014 | F187: 12 | G187: 0.8666666667 | H187: 10.4 | I187: PEI
A188: 19649 | B188: VIS | C188: 9892 | D188: PEI | E188: 2009 | F188: 11 | G188: 4.489090909 | H188: 49.38 | I188: PEI
A189: 19689 | B189: BAGUE | C189: 10049 | D189: PASMSE | E189: 2009 | F189: 7 | G189: 49.28571429 | H189: 345 | I189: PAS
A190: 19812 | B190: SUPPORT DE CONTREFICHE | C190: 10006 | D190: CNDOAS | E190: 2009 | F190: 5 | G190: 7.154 | H190: 35.77 | I190: CND | J190: OAS
A191: 19812 | B191: SUPPORT DE CONTREFICHE | C191: 10007 | D191: CNDOAS | E191: 2009 | F191: 4 | G191: 8.9425 | H191: 35.77 | I191: CND | J191: OAS
A192: 19812 | B192: SUPPORT DE CONTREFICHE | C192: 13105 | D192: CNDOAS | E192: 2010 | F192: 3 | G192: 11.92333333 | H192: 35.77 | I192: CND | J192: OAS
A193: 19812 | B193: SUPPORT DE CONTREFICHE | C193: 20699 | D193: CNDOAS | E193: 2014 | F193: 12 | G193: 3.146666667 | H193: 37.76 | I193: CND | J193: OAS
A194: 19812 | B194: SUPPORT DE CONTREFICHE | C194: 10006 | D194: PEI | E194: 2009 | F194: 5 | G194: 438 | H194: 2190 | I194: PEI
A195: 19812 | B195: SUPPORT DE CONTREFICHE | C195: 10007 | D195: PEI | E195: 2009 | F195: 4 | G195: =H195/F195 -> 492.75 | H195: 1971 | I195: PEI
A196: 19812 | B196: SUPPORT DE CONTREFICHE | C196: 13106 | D196: PEI | E196: 2011 | F196: 3 | G196: 42.56666667 | H196: 127.7 | I196: PEI
A197: 19832 | B197: BAGUE | C197: 8797 | D197: PAS | E197: 2009 | F197: 40 | G197: 12.219 | H197: 488.76 | I197: PAS
A198: 19832 | B198: BAGUE | C198: 10157 | D198: PAS | E198: 2009 | F198: 11 | G198: 64.54545455 | H198: 710 | I198: PAS
A199: 19832 | B199: BAGUE | C199: 11371 | D199: PAS | E199: 2010 | F199: 25 | G199: 2.044 | H199: 51.1 | I199: PAS
A200: 19832 | B200: BAGUE | C200: 12936 | D200: PAS | E200: 2010 | F200: 14 | G200: 3.65 | H200: 51.1 | I200: PAS
... 10470 more rows

Sheet Recherche
A2: Recherche référence
C6: Référence | D6: N°BC | E6: Traitement | F6: Année | G6: Qté | H6: Prix U | I6: Trait 1 | J6: Trait 2 | K6: Trait 3 | L6: Trait 4

Sheet Traitement
A1: TRAIT 1 | B1: TRAIT 2 | C1: TRAIT 3 | D1: TRAIT 4
A2: BALINIT
A3: BALINIT
A4: BALINIT
A5: BRASURE
A6: BRASURE
A7: BRASURE
A8: BRASURE
A9: BRASURE
A10: BRASURE
A11: BRASURE
A12: BRASURE
A13: BRASURE
A14: BRASURE
A15: BRASURE
A16: BRASURE
A17: BRASURE
A18: BRASURE
A19: BROCHAGE
A20: BROCHAGE
A21: BROCHAGE
A22: BROCHAGE
A23: BROCHAGE
A24: BROCHAGE
A25: BROCHAGE
A26: BROCHAGE
A27: BROCHAGE
A28: BRU
A29: BRU
A30: BRU
A31: BRU
A32: BRU
A33: BRU
A34: BRU
A35: BRU
A36: BRU
A37: BRU
A38: BRU
A39: BRU
A40: BRU
A41: BRU
A42: BRU
A43: BRU
A44: BRU
A45: BRU
A46: BRU
A47: BRU
A48: BRU
A49: BRU
A50: BRU
A51: BRU
A52: BRU
A53: BRU
A54: BRU
A55: BRU
A56: BRU
A57: BRU
A58: BRU
A59: BRU
A60: BRU
A61: BRU
A62: BRU
A63: BRU
A64: BRU
A65: BRU
A66: BRU
A67: BRU
A68: BRU
A69: BRU
A70: BRU
A71: BRU
A72: CAD
A73: CAD
A74: CAD
A75: CAD
A76: CAD
A77: CAD
A78: CAD
A79: CAD
A80: CAD
A81: CAD
A82: CAD
A83: CAD
A84: CAD
A85: CAD
A86: CAD
A87: CAD
A88: CAD
A89: CAD
A90: CAD
A91: CAD
A92: CAD
A93: CAD
A94: CAD
A95: CAD
A96: CAD
A97: CAD
A98: CAD
A99: CAD
A100: CAD
A101: CAD
A102: CAD
A103: CAD
A104: CAD
A105: CAD
A106: CAD
A107: CAD
A108: CAD
A109: CAD
A110: CAD
A111: CAD
A112: CAD
A113: CAD
A114: CAD
A115: CAD
A116: CAD
A117: CAD
A118: CAD
A119: CAD
A120: CAD
A121: CAD
A122: CAD
A123: CAD
A124: CAD
A125: CAD
A126: CAD
A127: CAD
A128: CAD
A129: CAD
A130: CAD
A131: CAD
A132: CAD
A133: CAD
A134: CAD
A135: CAD
A136: CAD
A137: CAD
A138: CAD
A139: CAD
A140: CAD
A141: CAD
A142: CAD
A143: CAD
A144: CAD
A145: CAD
A146: CAD
A147: CAD
A148: CAD
A149: CAD
A150: CAD
A151: CAD
A152: CAD
A153: CAD
A154: CAD
A155: CAD
A156: CAD
A157: CAD
A158: CAD
A159: CAD
A160: CAD
A161: CAD
A162: CAD
A163: CAD
A164: CAD
A165: CAD
A166: CAD
A167: CAD
A168: CAD
A169: CAD
A170: CAD
A171: CAD
A172: CAD
A173: CAD
A174: CAD
A175: CAD
A176: CAD
A177: CAD
A178: CAD
A179: CAD
A180: CAD
A181: CAD
A182: CAD
A183: CAD
A184: CAD
A185: CAD
A186: CAD
A187: CAD
A188: CAD
A189: CAD
A190: CAD
A191: CAD
A192: CAD
A193: CAD
A194: CAD
A195: CAD
A196: CAD
A197: CAD
A198: CAD
A199: CAD
A200: CAD
... 10463 more rows
